Cogmind - Beta 17 @@@ ROGUE MODE // 2026.06.23 @ 00:42:56 Player: jumpy Result: Destroyed by B-99 Colossus with Multirail Performance ------------- Evolutions (9) 4500 Regions Visited (14) 2800 Robots Destroyed (110) 550 Value Destroyed (3488) 3488 Prototype IDs (25) 500 Alien Tech Used (0) 0 Bonus (17653) 17653 TOTAL SCORE: 29491 Bonus ------- High Alert Combat Kills 108 Follower Combat Kills 245 Prayed to X0-1V1 5000 Major X0-1V1 Interference 11800 Entered DSFs 500 Cogmind --------- Core Integrity 0/1350 Matter 861/1200 Energy 88/300 System Corruption 1% Temperature Cool (0) Movement Core (50) Location -1/Access Parts ------- > --- POWER (2) -------- (None) > --- PROPULSION (8) --- (None) > --- UTILITY (13) ----- Advanced Target Analyzer > --- WEAPON (2) ------- (None) > --- INVENTORY (5) ---- Enhanced Nova Cannon Peak State ------------ > --- POWER ------------ Light Antimatter Reactor > --- PROPULSION ------- Heavy Shield Leg Heavy Shield Leg High-density Centrium Leg > --- UTILITY ---------- Advanced Sensor Array Advanced Signal Interpreter Advanced Corruption Screen X0-1V1's Piety Tracker > --- WEAPON ----------- Precision Phase Gun > --- INVENTORY -------- Antigrav System [Rating: 93] Favorites ----------- Power Heavy Ion Engine Engine Heavy Ion Engine Power Core Light Fission Core Reactor Light Antimatter Reactor Propulsion Aluminum Leg Treads Improved Heavy Treads Leg Aluminum Leg Wheel Compact Wheel Hover Unit Airjet Flight Unit Biomechanical Wings Utility X0-1V1's Piety Tracker Device X0-1V1's Piety Tracker Storage Medium Storage Unit Processor Core Analyzer Weapon Flak Gun Energy Gun Precision Phase Gun Energy Cannon Beam Cannon Ballistic Gun Flak Gun Launcher Rocket Launcher Special Weapon Improved Plasma Cutter Impact Weapon Shock Maul Slashing Weapon Power Sword Piercing Weapon Force Lance Special Melee Weapon Dirty Datajack Build | -11 -10 -9 -8 -7 -7 -7 -6 -5 -5 -4 -3 -2 -2 -1 ------- Run | Yrd Mat Mat Mat Fac Low Low Fac Fac DSF Fac Res Res Tes Acc Slots Evolved 18 | . . 2 2 2 . . 2 2 . 2 2 2 . 2 Power . | . . . . . . . . . . . . . . . Propulsion 5 | . . 1 1 1 . . . 1 . 1 . . . . Utility 12 | . . 1 1 1 . . 1 1 . 1 2 2 . 2 Weapon 1 | . . . . . . . 1 . . . . . . . Parts Attached 114 | 7 7 11 18 2 10 1 12 2 . 3 10 5 10 16 Power 14 | 1 1 2 2 . 2 . 1 . . 1 . . 2 2 Engine 8 | 1 1 2 2 . 2 . . . . . . . . . Core 1 | . . . . . . . 1 . . . . . . . Reactor 5 | . . . . . . . . . . 1 . . 2 2 Propulsion 37 | 2 3 4 5 1 6 . 3 . . . 4 1 2 6 Treads 3 | . . . . . . . . . . . 3 . . . Leg 22 | 2 3 4 2 . 6 . 2 . . . . . . 3 Wheel 1 | . . . . 1 . . . . . . . . . . Hover 7 | . . . 3 . . . . . . . 1 . . 3 Flight 4 | . . . . . . . 1 . . . . 1 2 . Utility 29 | 2 1 2 6 . . . 2 2 . 1 4 1 3 5 Device 18 | 1 . 2 3 . . . 2 . . . 3 1 3 3 Storage 5 | 1 1 . 1 . . . . 1 . . 1 . . . Processor 6 | . . . 2 . . . . 1 . 1 . . . 2 Hackware . | . . . . . . . . . . . . . . . Protection . | . . . . . . . . . . . . . . . Artifact . | . . . . . . . . . . . . . . . Weapon 34 | 2 2 3 5 1 2 1 6 . . 1 2 3 3 3 Energy Gun 5 | 1 1 . . 1 . . . . . . . . . 2 Energy Cannon 6 | . . 2 1 . . . . . . . 1 . 1 1 Ballistic Gun 9 | 1 1 . 3 . 2 . 1 . . 1 . . . . Ballistic Cannon . | . . . . . . . . . . . . . . . Launcher 4 | . . 1 1 . . 1 . . . . . 1 . . Special Weapon 1 | . . . . . . . . . . . . . 1 . Impact Weapon 4 | . . . . . . . 3 . . . 1 . . . Slashing Weapon 2 | . . . . . . . 2 . . . . . . . Piercing Weapon 3 | . . . . . . . . . . . . 2 1 . Special Melee Weapon . | . . . . . . . . . . . . . . . Unidentified Prototypes 22 | . . 2 1 1 . . 4 1 . 2 4 . 5 2 Corrupted Parts 1 | . . . . . 1 . . . . . . . . . System Corruption 10 | . . . . . 10 . . . . . . . . . Parts Lost 48 | . 4 4 10 2 1 . 4 . . . 4 3 2 14 Power 6 | . 1 . 1 . 1 . 1 . . . . . . 2 Propulsion 13 | . . . 5 1 . . 2 . . . . . 1 4 Utility 16 | . . 1 4 . . . 1 . . . 2 2 . 6 Weapon 13 | . 3 3 . 1 . . . . . . 2 1 1 2 Highest Loss Streak 4 | . 3 3 4 2 1 . 4 . . . 2 1 1 4 To Critical Strikes 1 | . . . 1 . . . . . . . . . . . Average Backups 4 | 2 6 9 7 4 2 3 3 4 4 4 2 3 2 1 Power . | . . . . . . . . 1 1 1 1 1 . . Propulsion 2 | 1 4 6 3 . . 1 1 1 1 1 1 1 2 1 Utility . | . . . . . . . . . . . . . . . Weapon 1 | . 1 2 3 4 2 2 1 2 2 2 . . . . Tool/Special . | . . . . . . . . . . . . . . . Unused Backups 5 | . . . 3 . . . . . . . 1 . . 1 Power . | . . . . . . . . . . . . . . . Propulsion 4 | . . . 2 . . . . . . . 1 . . 1 Utility . | . . . . . . . . . . . . . . . Weapon 1 | . . . 1 . . . . . . . . . . . Tool/Special . | . . . . . . . . . . . . . . . Average Slot Usage (%) 56 | . 91 89 81 54 77 81 48 20 23 24 14 6 23 21 Engine 5 | . 13 11 8 7 6 7 3 . . . . . . . Leg 16 | . 28 26 29 . 31 38 18 . . . . . . 4 Hover 1 | . . . 2 11 . . . . . . 2 . . 1 Flight 1 | . . . . . . . 1 5 5 5 1 1 9 . Device 8 | . 14 21 7 7 7 7 4 5 5 5 3 2 5 4 Storage 4 | . 14 11 9 . . . . 1 . . . . . . Processor 5 | . . . 10 15 15 15 8 2 5 8 3 . . 5 Energy Gun 3 | . 13 2 . 2 . . . . . . . . 2 3 Energy Cannon 2 | . . 17 3 . . . . . . . . . . . Ballistic Gun 4 | . 7 . 9 7 14 11 1 . . . . . . . Peak Build Rating 93 | 7 9 30 41 37 50 49 64 34 31 44 78 47 91 93 Average Rating 30 | 4 7 23 30 34 45 47 38 30 31 35 27 21 60 55 On Entrance 27 | . 7 9 28 34 29 49 45 27 31 31 36 15 26 39 Avg Prop Armor Cover (%) 10 | . . . 17 . 8 . . . . . . . . . Naked Turns 129 | . . . . . . . 24 . . . 39 66 . . Heaviest Build 36 | 14 20 26 36 15 19 21 28 4 4 4 14 15 29 32 Greatest Support 225 | 20 20 51 61 16 75 75 86 6 6 6 225 16 29 152 Greatest Overweight (x) 3 | . . 1 3 . 1 . . . . . . 2 2 2 Average Overweight (x) . | . . . . . . . . . . . . . . . Largest Inventory Capacity 15 | 8 10 10 15 5 5 5 5 5 5 5 5 5 5 5 Average Capacity 7 | 6 9 10 13 5 5 5 5 5 5 5 5 5 5 5 Most Carried 10 | 6 9 10 10 5 4 4 5 5 5 5 5 5 5 5 Average Carried 5 | 2 6 9 7 4 2 3 4 5 5 5 3 4 3 1 Final Capacity 10 | 8 10 10 5 5 5 5 5 5 5 5 5 5 5 5 Final Carried 10 | 6 9 10 5 4 4 4 5 5 5 5 4 5 5 1 Class Distribution -------------------- 67% | Mutant 25% | Scavenger-Mutant Dominant Class ---------------- Scavenger-Mutant | -10/Materials Mutant | -9/Materials Mutant | -8/Materials Mutant | -7/Factory Scavenger-Mutant | -7/Lower Caves Scavenger-Mutant | -7/Lower Caves Gladiator | -6/Factory Mutant | -5/Factory Mutant | -5/DSF Mutant | -4/Factory Mutant | -3/Research Mutant | -2/Research Commander-Sprinter | -2/Testing Mutant | -1/Access Resources | -11 -10 -9 -8 -7 -7 -7 -6 -5 -5 -4 -3 -2 -2 -1 ----------- Run | Yrd Mat Mat Mat Fac Low Low Fac Fac DSF Fac Res Res Tes Acc Matter Collected 2360 | 297 165 303 110 178 335 . 29 . . 256 88 48 100 451 Remotely . | . . . . . . . . . . . . . . . Salvage Created 3847 | 104 458 542 504 363 344 75 96 . . 327 303 128 70 533 Parts 186 | 7 25 39 22 19 20 3 1 . . 5 4 7 10 24 Haulers Intercepted 7 | . 1 2 . 2 . . . . . 1 1 . . . Recyclers Shooed 2 | . . 1 . . . . 1 . . . . . . . Parts Field Recycled . | . . . . . . . . . . . . . . . Retrieved Matter . | . . . . . . . . . . . . . . . Parts Self-Destructed 11 | . . . . . 9 2 . . . . . . . . Prevented 3 | . . . . . 3 . . . . . . . . . Parts Restored . | . . . . . . . . . . . . . . . Kills | -11 -10 -9 -8 -7 -7 -7 -6 -5 -5 -4 -3 -2 -2 -1 ------- Run | Yrd Mat Mat Mat Fac Low Low Fac Fac DSF Fac Res Res Tes Acc Combat Hostiles Destroyed 76 | . 12 11 11 1 10 5 2 . . 4 1 6 1 12 Melee 6 | . 1 . . . . . 1 . . 1 1 2 . . Guns 37 | . 10 1 5 1 10 . . . . . . . 1 9 Cannons 13 | . . 8 2 . . . . . . . . . . 3 AOE 16 | . 1 2 4 . . 5 . . . . . 4 . . Classes Destroyed 16 | 2 4 3 3 . 1 . 1 . . 1 . 1 . . Worker 8 | . . 2 1 4 . . 1 . . . . . . . Builder 4 | . . . 1 1 . . . . . 1 1 . . . Tunneler 4 | 2 . . . . . . . . . . . 1 . 1 Hauler 7 | . 1 2 . 2 . . . . . 1 1 . . . Recycler 6 | 1 1 1 . 2 . . . . . . 1 . . . Minesweeper 1 | . . . . . 1 . . . . . . . . . Mechanic 1 | . . 1 . . . . . . . . . . . . Operator 1 | . . . . . . . . . . 1 . . . . Watcher 2 | . 1 1 . . . . . . . . . . . . Swarmer 34 | . 3 6 . . 5 5 1 . . 1 . 4 . 9 Grunt 23 | . 9 2 8 1 1 . . . . 1 1 . . . Brawler 1 | . . . 1 . . . . . . . . . . . Duelist 1 | . . . . . . . 1 . . . . . . . Sentry 5 | . . 3 1 . . . . . . . . . . 1 Hunter 3 | . . . 1 . . . . . . 2 . . . . Programmer 5 | . . . . . . . . . . . . 2 1 2 Thug 4 | . . . . . 4 . . . . . . . . . Best Kill Streak 6 | 1 4 5 6 5 5 5 2 . . 4 2 5 1 5 Combat Bots Only 5 | . 4 4 4 1 5 5 1 . . 3 1 4 1 5 Max Kills in Single Turn 5 | 1 3 3 2 5 2 5 1 . . 1 1 2 1 2 Gunslinging 1 | . . . . . 1 . . . . . . . . 1 Exploded 5 | . 1 2 2 . . 5 . . . . . 2 . . Melee 1 | . 1 . . . . . 1 . . 1 1 1 . . Uniques/NPCs Destroyed . | . . . . . . . . . . . . . . . Combat | -11 -10 -9 -8 -7 -7 -7 -6 -5 -5 -4 -3 -2 -2 -1 -------- Run | Yrd Mat Mat Mat Fac Low Low Fac Fac DSF Fac Res Res Tes Acc Hostile Shots Fired 1128 | . 83 110 78 34 36 13 175 . 21 21 184 67 94 212 Missed 432 | . 18 22 20 15 12 7 77 . 11 11 76 25 62 76 Deflected 3 | . . . . . . . 3 . . . . . . . Hits 696 | . 65 88 58 19 24 6 98 . 10 10 108 42 32 136 Melee 6 | . . . . . . . 4 . . . 2 . . . Projectile 690 | . 65 88 58 19 24 6 94 . 10 10 106 42 32 136 AOE 1 | . . . . . . . . . . . . . . 1 Critical Strikes 24 | . 1 2 2 . . . 2 . . . 3 4 2 8 Part Disruptions 3 | . . . . . 2 . . . . . . . . 1 Damage Taken 12310 | . 769 1054 987 404 423 128 1228 . 188 193 2067 1066 521 3282 Core 5373 | . 148 219 116 75 87 . 593 . 138 148 1546 763 183 1357 Absorbed by Shields . | . . . . . . . . . . . . . . . Core Remaining (%) 53 | 100 40 44 92 . . 64 1 . 81 83 7 . 21 . Volleys Fired 217 | 9 58 36 40 10 20 3 . . . . 3 3 3 32 Largest 2 | 2 2 2 2 2 2 2 . . . . 1 1 2 2 Hottest 188 | 60 85 120 60 68 56 64 . . . . 33 52 188 188 Shots Fired 347 | 18 102 60 56 13 40 6 . . . . 3 3 6 40 Gun 251 | 18 102 5 32 13 40 5 . . . . 3 . 6 27 Cannon 86 | . . 53 20 . . . . . . . . . . 13 Launcher 10 | . . 2 4 . . 1 . . . . . 3 . . Special . | . . . . . . . . . . . . . . . Kinetic 154 | 9 55 . 32 10 40 5 . . . . 3 . . . Thermal 180 | 9 47 58 20 . . . . . . . . . 6 40 Explosive 10 | . . 2 4 . . 1 . . . . . 3 . . Electromagnetic 3 | . . . . 3 . . . . . . . . . . Robot Hit Streak 18 | 2 16 8 10 8 10 2 . . . . 1 . 5 18 Robot Miss Streak 11 | 1 2 3 11 3 9 10 . . . . 1 4 . 2 Penetration Max . | . . . . . . . . . . . . . . . Secondary Targets 4 | . . . . . 2 . . . . . . . . 2 Max Gunslinging Chain 1 | . . . . . 1 . . . . . . . . 1 Shots Hit Robots 290 | 11 73 37 44 10 34 5 7 . . 10 18 3 5 33 Core Hits 232 | 4 26 23 55 11 57 13 3 . . 1 7 12 3 17 Critical Kills 3 | . 1 . . . . . . . . 1 1 . . . Critical Parts Destroyed 3 | . . . . . . . 1 . . 2 . . . . Critical Strikes 12 | . 1 . . . . . 1 . . 3 1 1 2 3 Burn 5 | . . . . . . . . . . . . . 2 3 Destroy 1 | . 1 . . . . . . . . . . . . . Smash 5 | . . . . . . . 1 . . 3 1 . . . Impale 1 | . . . . . . . . . . . . 1 . . Melee Attacks 60 | . . . . . . . 13 . . 16 25 6 . . Impact 30 | . . . . . . . 2 . . 16 12 . . . Slashing 11 | . . . . . . . 11 . . . . . . . Piercing 19 | . . . . . . . . . . . 13 6 . . Sneak Attacks 15 | . . . . . . . 1 . . 4 10 . . . Combat Hostiles 5 | . . . . . . . . . . 2 3 . . . Follow-up Attacks 1 | . . . . . . . 1 . . . . . . . Martial Strikes 6 | . . . . . . . 6 . . . . . . . Damage Inflicted 8828 | 126 1221 875 1057 709 649 254 353 . . 807 516 876 171 1214 Guns 3266 | 126 895 66 451 150 649 49 . . . . 18 . 171 691 Cannons 1368 | . . 599 263 . . . . . . . . . . 506 Explosions 2332 | . 321 194 343 555 . 205 . . . . . 714 . . Melee 1760 | . . . . . . . 319 . . 807 498 136 . . Ramming 102 | . 5 16 . 4 . . 34 . . . . 26 . 17 Kinetic 1827 | 81 486 . 451 93 649 49 . . . . 18 . . . Thermal 3626 | 45 730 665 263 555 . . . . . . . . 171 1197 Explosive 1456 | . . 194 343 . . 205 . . . . . 714 . . Electromagnetic 57 | . . . . 57 . . . . . . . . . . Impact 1440 | . . . . . . . 161 . . 807 472 . . . Slashing 158 | . . . . . . . 158 . . . . . . . Piercing 162 | . . . . . . . . . . . 26 136 . . Highest Corruption 17 | . . . . . 10 10 17 . . . 3 6 6 1 Average Corruption 4 | . . . . . 10 10 1 . . . 3 3 6 1 Corruption Purged . | . . . . . . . . . . . . . . . Corruption Blocked 9 | . . . . . . . . . . . . . . 9 Effects 17 | . . . . . 2 1 . . . . 4 7 3 . Message Errors 3 | . . . . . 1 . . . . . 1 1 . . Matter Fused 4 | . . . . . . . . . . . 1 2 1 . Heat Flow Errors 3 | . . . . . 1 . . . . . . 2 . . Energy Discharges 1 | . . . . . . . . . . . . . 1 . Parts Fused 1 | . . . . . . . . . . . . 1 . . Data Loss (minor) 3 | . . . . . . . . . . . 1 1 1 . Data Loss (major) 2 | . . . . . . 1 . . . . 1 . . . Overload Shots . | . . . . . . . . . . . . . . . Overflow Damage 1137 | . 39 . . 325 . . 121 . . 380 142 95 . 35 Projectiles 35 | . . . . . . . . . . . . . . 35 Explosions 459 | . 39 . . 325 . . . . . . . 95 . . Melee 643 | . . . . . . . 121 . . 380 142 . . . Knockbacks 4 | . . . . . . . . . . 4 . . . . Impact 4 | . . . . . . . . . . 4 . . . . Kinetic . | . . . . . . . . . . . . . . . Secondary . | . . . . . . . . . . . . . . . Self-Inflicted Damage 413 | . . 14 17 245 . 32 15 . . . . 84 . 6 Shots 9 | . . 1 1 4 . 1 . . . . . 2 . . Rammed 19 | . . . . 3 . . 7 . . . . 5 . 4 Targets Rammed 26 | . 3 3 . 3 . . 7 . . . . 5 . 5 Kicked 7 | . 3 3 . . . . . . . . . . . 1 Crushed . | . . . . . . . . . . . . . . . Highest Temperature 400 | . 258 314 130 43 216 77 394 . . . . 217 . 400 Average Temperature 86 | . 60 98 43 25 101 55 180 . . . . 119 . 117 Received Heat Transfer 2242 | . 414 435 351 51 54 . 267 . 9 9 355 90 108 99 Effects 3 | . 1 1 . . . . . . . . . . . 1 Energy Bleed 1 | . . 1 . . . . . . . . . . . . Interference 1 | . 1 . . . . . . . . . . . . . Damage (minor) 1 | . . . . . . . . . . . . . . 1 Siege Activations . | . . . . . . . . . . . . . . . Martial Activations 1 | . . . . . . . 1 . . . . . . . Total Turns 44 | . . . . . . . 44 . . . . . . . Longest Duration 44 | . . . . . . . 44 . . . . . . . Shielding Activations . | . . . . . . . . . . . . . . . Robots Disrupted . | . . . . . . . . . . . . . . . Combat Hostiles . | . . . . . . . . . . . . . . . Robots Corrupted 8 | . . . . . . . 1 . . 6 1 . . . Combat Hostiles 4 | . . . . . . . 1 . . 3 . . . . Parts Fried 20 | . . . . 1 . . . . . 16 3 . . . Impact Corruptions 23 | . . . . . . . 4 . . 15 4 . . . Robots Melted . | . . . . . . . . . . . . . . . Combat Hostiles . | . . . . . . . . . . . . . . . Parts Melted 15 | . . 4 4 2 . . . . . . . . 1 4 Heat Transferred 5530 | 100 1119 1406 555 500 . . . . . . . . 333 1517 Parts Sabotaged . | . . . . . . . . . . . . . . . Parts Stolen . | . . . . . . . . . . . . . . . Parts Stripped . | . . . . . . . . . . . . . . . Power Chain Reactions 2 | . . . . 2 . . . . . . . . . . Alert | -11 -10 -9 -8 -7 -7 -7 -6 -5 -5 -4 -3 -2 -2 -1 ------- Run | Yrd Mat Mat Mat Fac Low Low Fac Fac DSF Fac Res Res Tes Acc Maximum Alert Level 2 | . . 1 1 1 . . . . . 1 1 1 2 2 Low Security (%) 73 | 100 100 97 89 41 . . 100 100 100 73 81 36 25 . Level 1 18 | . . 2 10 58 . . . . . 26 18 63 11 61 Level 2 7 | . . . . . . . . . . . . . 62 38 Level 3 . | . . . . . . . . . . . . . . . Level 4 . | . . . . . . . . . . . . . . . Level 5 . | . . . . . . . . . . . . . . . High Security . | . . . . . . . . . . . . . . . Max Security . | . . . . . . . . . . . . . . . Peak Influence 607 | 5 151 209 234 353 . . 187 86 49 319 278 247 607 446 Initial 364 | . . 10 73 93 . . 81 86 49 25 164 . 106 364 Average 148 | . 79 107 65 197 . . 113 80 49 137 121 146 363 375 Influence Increases 4213 | 15 423 480 374 350 125 100 316 5 . 369 229 310 701 416 Destroy 0b10 Robot/C 1620 | . 240 220 220 20 120 100 40 . . 80 20 120 160 280 Destroy 0b10 Robot/NC 170 | 15 15 35 10 45 5 . 5 . . 15 15 5 . 5 Destroy Leader 278 | . 54 56 50 4 . . . . . 12 2 20 20 60 Allied During Kill 48 | . . . . . . . . . . . . . 34 14 Trap Triggered on 0b10 10 | . . . . . . . 10 . . . . . . . Successful Hack 10 | . . 5 . . . . . 5 . . . . . . Disable Machine 225 | . 75 . . 105 . . . . . 15 . 15 . 15 Destroy Structure 239 | . 9 17 19 50 . . . . . . 12 120 . 12 Partial Spotted 120 | . . . . . . . . . . 15 30 . 75 . Lose Combat Pursuer 645 | . 30 45 75 . . . 105 . . 60 150 30 120 30 Miscellaneous 848 | . . 102 . 126 . . 156 . . 172 . . 292 . Influence Decreases 3871 | 15 398 330 343 233 384 33 270 111 22 104 543 120 284 681 Entered New Map 1027 | . . 15 102 113 120 13 50 91 22 24 150 . 84 243 Time Decay 2164 | 15 358 275 151 100 254 20 180 20 . 80 253 100 120 238 Search Patrol Dispatched 100 | . . . . . . . . . . . 100 . . . Lost Part 460 | . 40 40 90 20 10 . 40 . . . 40 20 20 140 Lost Ally 120 | . . . . . . . . . . . . . 60 60 Squads Dispatched 29 | . 1 1 . 2 . . 6 . . 2 6 3 6 2 Investigation 5 | . 1 . . . . . 3 . . 1 . . . . Extermination 5 | . . . . . . . . . . . 1 1 1 2 Reinforcement 17 | . . 1 . 1 . . 3 . . 1 5 2 4 . Assault . | . . . . . . . . . . . . . . . Garrison 2 | . . . . 1 . . . . . . . . 1 . Intercept . | . . . . . . . . . . . . . . . Searches Triggered 1 | . . . . . . . . . . . 1 . . . Construction Impeded . | . . . . . . . . . . . . . . . Haulers Reinforced 2 | . . . . . . . . . . 1 . 1 . . Active Scanning Responses . | . . . . . . . . . . . . . . . Cargo Convoy Interrupts . | . . . . . . . . . . . . . . . Stealth | -11 -10 -9 -8 -7 -7 -7 -6 -5 -5 -4 -3 -2 -2 -1 --------- Run | Yrd Mat Mat Mat Fac Low Low Fac Fac DSF Fac Res Res Tes Acc Distress Signals 13 | . 1 1 1 1 . . 4 . . . 3 . . 2 Communications Jammed . | . . . . . . . . . . . . . . . Distress Signals . | . . . . . . . . . . . . . . . Times Spotted 249 | . 17 21 24 5 10 5 25 . 4 8 48 18 29 35 Peak Tracking Total 18 | . 4 10 7 4 5 5 10 . 4 4 14 9 10 18 Tactical Retreats 20 | . 2 1 3 . . . 4 . . 3 2 2 1 2 Traps | -11 -10 -9 -8 -7 -7 -7 -6 -5 -5 -4 -3 -2 -2 -1 ------- Run | Yrd Mat Mat Mat Fac Low Low Fac Fac DSF Fac Res Res Tes Acc Traps Triggered 4 | . 1 . . . 1 . . . . . . 1 . 1 Indirectly . | . . . . . . . . . . . . . . . Trap Hack Attempts . | . . . . . . . . . . . . . . . Triggered . | . . . . . . . . . . . . . . . Disarmed . | . . . . . . . . . . . . . . . Reprogrammed . | . . . . . . . . . . . . . . . Reused 1 | . . . . . . . 1 . . . . . . . Traps Extracted . | . . . . . . . . . . . . . . . Installed 2 | . . . . . 1 . 1 . . . . . . . Triggered 1 | . . . . . . . 1 . . . . . . . Most Traps Carried 1 | . . . . . . . 1 . . . . . . . Machines | -11 -10 -9 -8 -7 -7 -7 -6 -5 -5 -4 -3 -2 -2 -1 ---------- Run | Yrd Mat Mat Mat Fac Low Low Fac Fac DSF Fac Res Res Tes Acc Machines Disabled 15 | . 5 . . 7 . . . . . 1 . 1 . 1 Max in Single Turn 7 | . 4 . . 7 . . . . . 1 . 1 . 1 Energy Cycler 1 | . . . . . . . . . . . . . . 1 Machines Repaired . | . . . . . . . . . . . . . . . Machines Dismantled . | . . . . . . . . . . . . . . . Machines Sabotaged . | . . . . . . . . . . . . . . . Overloaded Fab Kills . | . . . . . . . . . . . . . . . Hacking | -11 -10 -9 -8 -7 -7 -7 -6 -5 -5 -4 -3 -2 -2 -1 --------- Run | Yrd Mat Mat Mat Fac Low Low Fac Fac DSF Fac Res Res Tes Acc Machines Accessed 4 | . . 2 . . . . . 1 . 1 . . . . Terminals 3 | . . 1 . . . . . 1 . 1 . . . . Fabricators . | . . . . . . . . . . . . . . . Repair Stations . | . . . . . . . . . . . . . . . Recycling Units . | . . . . . . . . . . . . . . . Scanalyzers 1 | . . 1 . . . . . . . . . . . . Garrison Access . | . . . . . . . . . . . . . . . Total Hacks 9 | . . 4 . . . . . 3 . 2 . . . . Successful 4 | . . 3 . . . . . 1 . . . . . . Failed 5 | . . 1 . . . . . 2 . 2 . . . . Catastrophic 1 | . . . . . . . . . . 1 . . . . Database Lockouts . | . . . . . . . . . . . . . . . Manual 2 | . 1 1 . . . . . . . . . . . . Terminals 8 | . . 3 . . . . . 3 . 2 . . . . Fabricators . | . . . . . . . . . . . . . . . Repair Stations . | . . . . . . . . . . . . . . . Recycling Units . | . . . . . . . . . . . . . . . Scanalyzers 1 | . . 1 . . . . . . . . . . . . Garrison Access . | . . . . . . . . . . . . . . . Terminal Hacks 2 | . . 1 . . . . . 1 . . . . . . Open DSF 1 | . . . . . . . . 1 . . . . . . Zone Layout 1 | . . 1 . . . . . . . . . . . . Fabricator Hacks . | . . . . . . . . . . . . . . . Repair Station Hacks . | . . . . . . . . . . . . . . . Recycling Unit Hacks . | . . . . . . . . . . . . . . . Scanalyzer 1 | . . 1 . . . . . . . . . . . . Retrieve Study 1 | . . 1 . . . . . . . . . . . . Garrison Access Hacks . | . . . . . . . . . . . . . . . Unauthorized Hacks 1 | . . 1 . . . . . . . . . . . . Terminals 1 | . . 1 . . . . . . . . . . . . Botnet 1 | . . 1 . . . . . . . . . . . . Fabricators . | . . . . . . . . . . . . . . . Repair Stations . | . . . . . . . . . . . . . . . Recycling Units . | . . . . . . . . . . . . . . . Scanalyzers . | . . . . . . . . . . . . . . . Garrison Access . | . . . . . . . . . . . . . . . Data Cores Recovered 1 | . . . . . . . . . . 1 . . . . Used 1 | . . . . . . . . . . 1 . . . . Hacking Detections 4 | . . 2 . . . . . 1 . 1 . . . . Full Trace Events 1 | . . . . . . . . . . 1 . . . . Feedback Events . | . . . . . . . . . . . . . . . Feedback Blocked . | . . . . . . . . . . . . . . . Robot Schematics Acquired . | . . . . . . . . . . . . . . . Robots Built . | . . . . . . . . . . . . . . . Authchips . | . . . . . . . . . . . . . . . Time . | . . . . . . . . . . . . . . . Total Robot Build Rating . | . . . . . . . . . . . . . . . Part Schematics Acquired . | . . . . . . . . . . . . . . . Parts Built . | . . . . . . . . . . . . . . . Authchips . | . . . . . . . . . . . . . . . Time . | . . . . . . . . . . . . . . . Total Part Build Rating . | . . . . . . . . . . . . . . . Part Studies Acquired 1 | . . 1 . . . . . . . . . . . . Parts Repaired . | . . . . . . . . . . . . . . . Time . | . . . . . . . . . . . . . . . Parts Recycled . | . . . . . . . . . . . . . . . Recycled Matter . | . . . . . . . . . . . . . . . Retrieved Matter . | . . . . . . . . . . . . . . . Retrieved Components . | . . . . . . . . . . . . . . . Parts Scanalyzed . | . . . . . . . . . . . . . . . Part Schematics Acquired . | . . . . . . . . . . . . . . . Parts Damaged . | . . . . . . . . . . . . . . . Bothacking | -11 -10 -9 -8 -7 -7 -7 -6 -5 -5 -4 -3 -2 -2 -1 ------------ Run | Yrd Mat Mat Mat Fac Low Low Fac Fac DSF Fac Res Res Tes Acc Used RIF Installer . | . . . . . . . . . . . . . . . Robots Hacked . | . . . . . . . . . . . . . . . Non-combat . | . . . . . . . . . . . . . . . Combat . | . . . . . . . . . . . . . . . Robot Hacks Applied . | . . . . . . . . . . . . . . . Relay Couplers Released . | . . . . . . . . . . . . . . . Fabnet Peak Effective % . | . . . . . . . . . . . . . . . Robots Rewired . | . . . . . . . . . . . . . . . Allies Hacked 2 | . . . . . . . . . . . . . 1 1 Hacks Repelled . | . . . . . . . . . . . . . . . Allies | -11 -10 -9 -8 -7 -7 -7 -6 -5 -5 -4 -3 -2 -2 -1 -------- Run | Yrd Mat Mat Mat Fac Low Low Fac Fac DSF Fac Res Res Tes Acc Total Allies 7 | . . . . . . . . . . . . . 4 3 Largest Group 4 | . . . . . . . . . . . . . 4 3 Highest-Rated Group 356 | . . . . . . . . . . . . . 356 90 Highest-Rated Ally 89 | . . . . . . . . . . . . . 89 30 Total Orders . | . . . . . . . . . . . . . . . Ally Attacks 81 | . . . . . . . . . . . . . 60 21 Total Damage 1159 | . . . . . . . . . . . . . 755 404 Kills 9 | . . . . . . . . . . . . . 7 2 Allies Corrupted 3 | . . . . . . . . . . . . . 3 . Allies Melted . | . . . . . . . . . . . . . . . X0-1V1 Amusement Gains 221 | . 16 10 . . . . 10 . . . 86 15 . 84 Good Acts 70 | . . 2 2 1 . 3 24 . 1 1 11 12 8 5 Bad Acts 63 | . . 2 2 4 2 7 15 1 1 2 9 7 6 5 Intel | -11 -10 -9 -8 -7 -7 -7 -6 -5 -5 -4 -3 -2 -2 -1 ------- Run | Yrd Mat Mat Mat Fac Low Low Fac Fac DSF Fac Res Res Tes Acc Active Infowar (turns) 1666 | 42 844 687 42 . . . . . . . . . . 51 Sensors 51 | . . . . . . . . . . . . . . 51 Seismic 1615 | 42 844 687 42 . . . . . . . . . . . Robot Analysis Total . | . . . . . . . . . . . . . . . Derelict Logs Recovered 1 | . . . . . 1 . . . . . . . . . Drone Launches . | . . . . . . . . . . . . . . . Drone Recoveries . | . . . . . . . . . . . . . . . Exploration | -11 -10 -9 -8 -7 -7 -7 -6 -5 -5 -4 -3 -2 -2 -1 ------------- Run | Yrd Mat Mat Mat Fac Low Low Fac Fac DSF Fac Res Res Tes Acc Turns Passed 5085 | 133 844 687 419 205 542 51 365 42 23 169 568 282 240 515 Spaces Moved 4716 | 81 370 387 236 279 397 34 391 96 57 255 744 477 446 466 Core 558 | 10 . . . . . . 35 . . . 94 304 . 115 Treads 11 | . . . . . . . . . . . 11 . . . Legs 1757 | 71 370 387 200 . 343 34 158 . . . . . . 194 Wheels 99 | . . . . 45 54 . . . . . . . . . Hover 704 | . . . 36 234 . . . . . . 354 . . 80 Flight 1587 | . . . . . . . 198 96 57 255 285 173 446 77 Fastest Speed 27 | 50 120 105 52 56 100 120 40 40 40 40 40 45 27 40 Average Speed 79 | 111 120 138 117 63 117 120 76 40 40 40 62 50 33 84 Slowest Speed 260 | 120 120 175 260 100 120 120 230 40 40 40 160 150 197 200 Overloaded Moves 15 | . . . . . . . 15 . . . . . . . Propulsion Burnouts . | . . . . . . . . . . . . . . . Robots Hopped 17 | . . . . . . . 7 1 . . . 1 8 . Potential Cave-ins . | . . . . . . . . . . . . . . . Cave-ins Triggered . | . . . . . . . . . . . . . . . Exploration Rate (%) 28 | 4 64 43 28 12 67 4 17 4 57 7 29 21 59 18 Regions Visited 14 Branch Regions 3 Pre-discovered Areas . | . . . . . . . . . . . . . . . Known Exits Taken 5 | . . . . . . . 1 1 . 1 . 1 1 . Unknown Exits Taken 8 | 1 1 1 1 1 1 1 . . . . 1 . . . Scrap Searched 2 | . . . . . 2 . . . . . . . . . Spaces Dug 18 | . . . 11 . . . . . . . 6 1 . . Terrain Destroyed 187 | . 9 16 28 47 . 12 . . . . 6 66 . 3 Melee 7 | . . . . . . . . . . . 6 1 . . Projectile 3 | . . . . . . . . . . . . . . 3 AOE 177 | . 9 16 28 47 . 12 . . . . . 65 . . Terrain Rammed . | . . . . . . . . . . . . . . . Walls Destroyed . | . . . . . . . . . . . . . . . Machines Disabled . | . . . . . . . . . . . . . . . Actions | -11 -10 -9 -8 -7 -7 -7 -6 -5 -5 -4 -3 -2 -2 -1 --------- Run | Yrd Mat Mat Mat Fac Low Low Fac Fac DSF Fac Res Res Tes Acc Total 5598 | 102 670 479 317 296 430 37 430 97 56 290 827 500 522 545 Wait 420 | . 230 30 14 . . . 10 . . 13 36 3 63 21 Move 4668 | 80 369 386 235 278 396 33 376 93 56 254 743 474 429 466 Hop 17 | . . . . . . . 7 1 . . . 1 8 . Pick Up 25 | 6 2 5 2 1 1 . 3 . . 1 2 2 . . Fast Attach 76 | 7 1 2 10 1 6 . 7 2 . 3 10 6 8 13 Attach 22 | . 2 3 6 1 2 . 1 . . . 2 . 2 3 Detach 4 | . . . 1 . . . . . . . . . 2 1 Swap 24 | . 4 8 4 . 2 1 5 . . . . . . . Drop 44 | . 1 6 5 2 2 . 7 1 . 3 6 1 6 4 Fire 217 | 9 58 36 40 10 20 3 . . . . 3 3 3 32 Melee 52 | . . . . . . . 6 . . 16 25 5 . . Ram 19 | . . . . 3 . . 7 . . . . 5 . 4 Kick 7 | . 3 3 . . . . . . . . . . . 1 Crush . | . . . . . . . . . . . . . . . Escape Stasis . | . . . . . . . . . . . . . . . Rewire 1 | . . . . . . . . . . . . . 1 . Trap 2 | . . . . . 1 . 1 . . . . . . . Miscellaneous . | . . . . . . . . . . . . . . . Route ------- -11/Scrapyard -10/Materials (discovered 5 exits: *Mat x3 / [*Min] / [*Sub]) -9/Materials (discovered 2 exits: [*Mat] / [*Min]) -8/Materials -7/Factory -7/Lower Caves -7/Lower Caves -6/Factory (discovered 3 exits: *Fac / Low x2) -5/Factory -5/DSF -4/Factory -3/Research -2/Research (discovered 2 exits: Acc / *Tes) -2/Testing -1/Access (discovered 1 exit: *Com) History --------- Turn | Location | Event 3 | -11/Scrapyard | Discovered new exit (range 15) 134 | -11/Scrapyard | Entered Materials 159 | -10/Materials | Discovered new exit (range 14) 188 | -10/Materials | Discovered new exit (range 12) 306 | -10/Materials | Build established: Mutant 486 | -10/Materials | Lost 3 parts (1p2w) 559 | -10/Materials | Core integrity fell below 50% 580 | -10/Materials | Discovered new exit (range 7) 652 | -10/Materials | Discovered new exit (range 9) 739 | -10/Materials | Build established: Scavenger-Mutant 875 | -10/Materials | Discovered new exit (range 11) 894 | -10/Materials | Prayed at D.C.S.S. Altar Unit 978 | -10/Materials | Entered another Materials area 978 | -9/Materials | Evolved 2 slots: Propulsion x1, Utility x1 1089 | -9/Materials | X0-1V1 added 0b10 threat records associated with you (minor) 1315 | -9/Materials | Matter capacity permanently improved by X0-1V1 (+200) 1397 | -9/Materials | Build established: Mutant 1434 | -9/Materials | Sensors blinded by X0-1V1 1475 | -9/Materials | Discovered new exit (range 6) 1600 | -9/Materials | Discovered new exit (range 16) 1626 | -9/Materials | X0-1V1 downgraded hostiles (x1) 1660 | -9/Materials | Core integrity fell below 50% 1665 | -9/Materials | Entered another Materials area 1665 | -8/Materials | Evolved 2 slots: Propulsion x1, Utility x1 1681 | -8/Materials | Lost 3 parts (1u2w) 1750 | -8/Materials | Lost 4 parts (2n2u) 1980 | -8/Materials | X0-1V1 upgraded hostiles (x1) 1993 | -8/Materials | Energy capacity permanently improved by X0-1V1 (+200) 2064 | -8/Materials | X0-1V1 foreshadows a heat wave 2068 | -8/Materials | Discovered new exit (range 16) 2084 | -8/Materials | Entered Factory 2084 | -7/Factory | Evolved 2 slots: Propulsion x1, Utility x1 2140 | -7/Factory | Ranged accuracy permanently improved by X0-1V1 (+5%) 2156 | -7/Factory | X0-1V1 added 0b10 threat records associated with you (minor) 2174 | -7/Factory | Garrison activated, responded to threat 2221 | -7/Factory | X0-1V1 enhanced Transport squad support 2273 | -7/Factory | Discovered new exit (range 16) 2289 | -7/Factory | Entered Lower Caves 2340 | -7/Lower Caves | Ambushed by wild Derelicts 2542 | -7/Lower Caves | X0-1V1 sent hostile S-27 Virus (x5) 2666 | -7/Lower Caves | Build established: Scavenger-Mutant 2752 | -7/Lower Caves | Encountered a Warlord checkpoint 2755 | -7/Lower Caves | System corruption reached 10% 2790 | -7/Lower Caves | Learned Factory terminal intel 2792 | -7/Lower Caves | Discovered new exit (range 13) 2831 | -7/Lower Caves | Entered another Lower Caves area 2845 | -7/Lower Caves | X0-1V1 sent hostile S-27 Virus (x5) 2860 | -7/Lower Caves | X0-1V1 mutated your Weapon slot to Power slot 2879 | -7/Lower Caves | Discovered new exit (range 3) 2882 | -7/Lower Caves | Entered Factory 2882 | -6/Factory | Evolved 2 slots: Utility x1, Weapon x1 2883 | -6/Factory | Loaded intel: 26 terminal locations 2928 | -6/Factory | X0-1V1 enhanced Transport squad support 2949 | -6/Factory | X0-1V1 released a cloud of subatomizers 2956 | -6/Factory | System corruption reached 10% 2958 | -6/Factory | X0-1V1 activates XOMVISION 2968 | -6/Factory | Identified exit to Factory 2968 | -6/Factory | X0-1V1 revealed exit location to -5/Factory 2970 | -6/Factory | X0-1V1 announced a LAN party 2984 | -6/Factory | X0-1V1 sent you to a vault 3001 | -6/Factory | X0-1V1 added 0b10 threat records associated with you (minor) 3028 | -6/Factory | Identified exit to Lower Caves 3028 | -6/Factory | X0-1V1 revealed exit location to -6/Lower Caves 3054 | -6/Factory | X0-1V1 sent hostile L-41 Fighter (x1) 3104 | -6/Factory | X0-1V1 downgraded hostiles (x2) 3123 | -6/Factory | Released all parts (7) 3125 | -6/Factory | Core integrity fell below 50% 3148 | -6/Factory | Lost 4 parts (1p2n1u) 3203 | -6/Factory | X0-1V1 redirected Transport squads to designated parking area 3203 | -6/Factory | X0-1V1 revealed exit location to -6/Lower Caves 3238 | -6/Factory | Core integrity fell below 20% 3247 | -6/Factory | Entered another Factory area 3247 | -5/Factory | Evolved 2 slots: Propulsion x1, Utility x1 3285 | -5/Factory | Identified exit to DSF 3287 | -5/Factory | X0-1V1 enhanced Transport squad support 3289 | -5/Factory | Entered DSF 3300 | -5/DSF | Identified exit to Factory 3300 | -5/DSF | X0-1V1 revealed exit location to -4/Factory 3301 | -5/DSF | X0-1V1 sent hostile H-66 Slayer (x2) 3312 | -5/DSF | Entered Factory 3312 | -4/Factory | Evolved 2 slots: Propulsion x1, Utility x1 3356 | -4/Factory | X0-1V1 activates XOMVISION 3437 | -4/Factory | X0-1V1 added 0b10 threat records associated with you (considerable) 3451 | -4/Factory | Build established: Mutant 3468 | -4/Factory | Discovered new exit (range 15) 3473 | -4/Factory | Identified exit to Research 3481 | -4/Factory | Entered Research 3481 | -3/Research | Evolved 2 slots: Utility x2 3495 | -3/Research | X0-1V1 redirected Transport squads to designated parking area 3521 | -3/Research | X0-1V1 sent you into danger 3572 | -3/Research | Core integrity fell below 50% 3574 | -3/Research | X0-1V1 whisked you away to safety 3594 | -3/Research | Found Prototype Device 3594 | -3/Research | Identified Exp. Shield Generator 3601 | -3/Research | X0-1V1 sent you into danger 3667 | -3/Research | Released all parts (8) 3708 | -3/Research | X0-1V1 sent hostile L-61 Swordsman (x1) 3722 | -3/Research | X0-1V1 sent you into danger 3731 | -3/Research | Search patrols dispatched 3754 | -3/Research | X0-1V1 announced a LAN party 3851 | -3/Research | Weapon slot count temporarily expanded by X0-1V1 (+1) 3853 | -3/Research | Core integrity fell below 20% 3871 | -3/Research | X0-1V1 rescued you from certain death 4037 | -3/Research | Spotted B-86 Titan 4045 | -3/Research | Discovered new exit (range 9) 4049 | -3/Research | Entered another Research area 4049 | -2/Research | Evolved 2 slots: Utility x2 4139 | -2/Research | Found Fusion Bomb Launcher 4156 | -2/Research | Identified exit to Access 4156 | -2/Research | X0-1V1 revealed exit location to -1/Access 4182 | -2/Research | X0-1V1 downgraded hostiles (x1) 4200 | -2/Research | Identified exit to Testing 4200 | -2/Research | X0-1V1 revealed exit location to -2/Testing 4226 | -2/Research | Core integrity fell below 50% 4260 | -2/Research | X0-1V1 mutated your Utility slot to Propulsion slot 4293 | -2/Research | Spotted B-90 Cyclops 4331 | -2/Research | Entered Testing 4381 | -2/Testing | X0-1V1 redirected Transport squads to designated parking area 4392 | -2/Testing | X0-1V1 added 0b10 threat records associated with you (major) 4393 | -2/Testing | X0-1V1 sent you into danger 4405 | -2/Testing | Found Prototype Device 4405 | -2/Testing | Identified Exp. Shock Absorption System 4420 | -2/Testing | X0-1V1 activates XOMVISION 4433 | -2/Testing | X0-1V1 sent you to a vault 4511 | -2/Testing | Garrison activated, responded to threat 4525 | -2/Testing | Discovered exit to Access (range 9) 4528 | -2/Testing | Spotted PG-0WBGZ88JQ5 4571 | -2/Testing | Entered Access 4571 | -1/Access | Evolved 2 slots: Utility x2 4582 | -1/Access | Identified exit to Command 4582 | -1/Access | X0-1V1 revealed exit location to -1/Command 4641 | -1/Access | X0-1V1 sent you to a vault 4911 | -1/Access | Sensors blinded by X0-1V1 4974 | -1/Access | Lost 4 parts (1p1n1u1w) 5022 | -1/Access | Spotted B-99 Colossus 5029 | -1/Access | Lost 3 parts (1p1n1u) 5058 | -1/Access | Spotted B-99 Colossus 5061 | -1/Access | X0-1V1 destroyed Energy Cycler 5061 | -1/Access | Energy Cycler disabled 5082 | -1/Access | Core integrity fell below 50% 5082 | -1/Access | X0-1V1 vaporized surrounding terrain (radius 22) 5082 | -1/Access | Spotted B-99 Colossus 5082 | -1/Access | Spotted B-99 Colossus 5085 | -1/Access | Core integrity fell below 20% 5086 | -1/Access | Destroyed by B-99 Colossus with Multirail Last Messages --------------- 05067_ Dropped Antigrav System. 05070_ Slammed into K-01 Serf. 05071_ K-01 Serf cleans the Hyperwave Decoder. 05071_ Slammed into K-01 Serf. 05075_ Slug penetrates Wall. 05075_ Penetrated by Slug. Surrounding terrain vaporized. 05082_ X0-1V1: "Learned that one from the Sigix." 05082_ Penetrated by Slug. 05083_ Scanalyzer disabled. 05083_ X0-1V1's Piety Tracker destroyed. 05083_ Slug penetrates Sealed Heavy Doors. 05083_ C-30 ARC bursts open, deploying its payload. 05083_ P-80 Master unfolds itself. 05083_ Adv. Signal Interpreter destroyed. 05083_ Penetrated by Slug. 05086_ Slug penetrates H-88 Terminator. 05086_ Slug penetrates Sealed Heavy Doors. 05086_ Penetrated by Slug. 05086_ X0-1V1 chuckles heartily! Map ----- +----------------------------------------------------+ | ?????????????????????????????????????????????????? | | ?????????????????????????????????????????????????? | | ?????????????????????????????????????????????????? | | ?????????????????????????????????????????????????? | | ?????????????????????????????????????????????????? | | ?????????????????????????????????????????????????? | | ?????????????????????????????????????????????????? | | ?????????????????????????????????????????????????? | | ?????????????????????????????????????????????????? | | ?????????????????????????????????????????????????? | | ???????????????????????#?###?????????????????????? | | ?????????????????????;; T;;;##???????????????????? | | ???????????????????? #????????????????? | | ????????????????????? ;##??????????????? | | ????????????????????? ;;##?????????????? | | ?????????????????????;; ;;;;; ;;;##????????????? | | ??????????????"???????;;;;;;; ;;T;;#???????????? | | ?????????????"? ???"??;;;;;;; ???????????? | | ######+????? "" ?? ;;; ??????????? | | ????? "" ??? > ;;;;;;;;;;;;;??????????? | | ???? """"T""??? ;;;;;;;; ??????????? | | ????? ;;;"""""??";;;; ;?????????? | | ????? ;;;;;;;""??";;;;;;;;; ;?????????? | | """"??? ;BB ;;;;;""";;;;; BB; ; ????????? | | """""#? ;BB BB; ; ????????? | | """""# ; h h@ ; ;=????????? | | """""# ; ; ; ????????? | | """""# ;;;;;;;;;""";;;;;;;;; ; ????????? | | """";;;;;;;;"" ;;;;;;;;;;;;;; ; ????????? | | " " ; ; ;?????????? | | " h " ; ! ; "?????????? | | #+####"" ! " %+ ; ??????????? | | / "" ; % ; ??????????? | | ##### "" ; ; ! ; ??????????? | | #???# "" ; ; = ;???????????? | | #???# S ; ; "???????????? | | #???# " ; ; """"" ????????????? | | #???# "" ; ; p """""? ????????????? | | #???# "" ; ; p ""?????????????????? | | #???# " ; ""?????????????????? | | #???# " + ""?????????????????? | | #???##"""""""""""" """"""""?????????????????? | | #?????? " """"""""?????????????????? | | #?????? " " ????????????????? | | ????????? " " = ??????????????????? | | ???????????""""""" " "????????????????????? | | ?????????????? " ???????????????????????? | | ???????????????? ?????????????????????????? | | ?????????????????????????????????????????????????? | | ?????????????????????????????????????????????????? | +----------------------------------------------------+ Best States ------------- Heat Dissipation 90 Energy Generation 37 Energy Capacity 2000 Matter Stores 851 Matter Capacity 1200 Sight Range 20 Robot Scan Range 16 Terrain Scan Density 210 Corruption Block 20 Evasion (%) 64 Target Analysis 8 Core Analysis 9 Recoil Reduction 6 Item Schematics ----------------- None Robot Schematics ------------------ None Fabricated ------------ Nothing Repaired ---------- Nothing Studied --------- Aluminum Leg | -9/Materials | Hacked Alien Tech Used ----------------- None Achievements -------------- None Challenges ------------ None Game ------ Seed ForceHeartProcsplitter Manual? 0 Play Time 00:43:11 Cumulative 330.9 hours Start 2026.06.22 @ 23:54:32 End 2026.06.23 @ 00:42:56 Sessions 1 Manual Loads 0 Difficulty Rogue Special Mode None Game No. 691 Rogue 691 Adventurer 0 Explorer 0 Win Type - Total 22 Types 15/0/4/2/1/0/0/0/0/0 Lore% 81 Gallery% 69 Achievement% 52 Wizard Run 0 Options --------- Layout 0 ASCII 0 Keyboard 0 Movement Numpad Keybinds 0 Fullscreen 2 Font 18/Terminus Map View 76x50 Zoom Use 0% Tactical HUD 1 Map Filters NONE Filters SATURATION(100) Steam 1 RUN: a8b50ba5-e4d1-4ba2-8fc1-4cdbf31763fe